{"text_format":"1","workbook":"xlsx","n_sheets":11,"sheets":["MENU","actu","Calc (1)","Calc (2)","Calc (3)","Calc (ed)","Calc (ed) (3)","Factor Absorción","Cultivo Coef","ACT - NO(A)EL-Factor Absorción","ACT - Cultivo Coef. Transfer"],"not_rendered":{"charts":0,"images":19,"macros":1,"external_links":0,"defined_names":10,"comments":2,"pivot_tables":0},"unopened":[],"bounds":{"document_bytes":16777216,"sheet_cells":100000,"rows_first":2000,"rows_last":500,"rows_between":2000,"halvings":0,"cell_chars":16384,"cell_head_chars":4096},"cells_cut":0,"cells_raw":0,"read":"whole","date_system":"1900"}

{"sheet":"MENU","index":0,"n_rows":0,"n_cols":0,"rows_kept":0,"cut":false,"hidden":false,"merged":[]}

{"sheet":"actu","index":1,"n_rows":0,"n_cols":0,"rows_kept":0,"cut":false,"hidden":false,"merged":[]}

{"sheet":"Calc (1)","index":2,"n_rows":36,"n_cols":31,"rows_kept":36,"cut":false,"hidden":false,"merged":[[0,0,1,0],[3,4,5,30],[9,5,9,15],[9,19,9,29],[7,4,7,9],[8,4,8,9],[7,10,7,24],[8,10,8,24],[34,19,34,21],[10,19,12,30],[13,4,13,7],[14,4,14,7],[13,19,13,22],[14,19,14,22],[13,12,13,15],[14,12,14,15],[13,27,13,30],[14,27,14,30],[10,16,14,18],[13,8,13,11],[14,8,14,11],[13,23,13,26],[14,23,14,26],[10,4,12,15],[22,17,22,21],[35,19,36,21],[35,22,36,24],[35,25,36,27],[35,28,36,30],[32,4,32,30],[34,4,34,6],[34,7,34,9],[34,10,34,12],[34,13,34,15],[34,16,34,18],[35,4,36,6],[35,7,36,9],[35,10,36,12],[35,13,36,15],[35,16,36,18],[16,4,16,16],[16,22,16,30],[18,22,18,30],[20,4,20,16],[20,17,20,21],[20,22,20,30],[18,17,18,21],[34,22,34,24],[34,25,34,27],[34,28,34,30],[16,17,16,21],[28,4,30,30],[26,4,26,16],[24,4,24,16],[24,22,24,30],[26,22,26,30],[27,5,27,29],[24,17,24,21],[26,17,26,21],[31,4,31,30],[22,4,22,16],[22,22,22,30],[18,4,18,16]]}
[]
[]
[null,null,null,null,null,null,null,null,null,null,null,null,null,null,null,null,null,null,null,null,null,null,null,null,null,null,null,null,null,null,{"$f":"IF(OR(K8=\"\",K9=\"\",E11=\"\",T11=\"\",R17=\"\",R19=\"\"),\"\",CONCATENATE(K9,\" (\",E11,\"-\",T11,\") \",E29))","v":""}]
[null,null,null,null,"CALCULADORA PARA LA DETERMINACIÓN DE LOS PERÍODOS DE REENTRADA EN PLAGUICIDAS QUÍMICOS DE USO AGRÍCOLA - MÉTODO 2"]
[]
[]
[]
[null,null,null,null,"Titular de Registro"]
[null,null,null,null,"Nombre Comercial\ndel Producto"]
[null,null,null,null,null,"Ingrediente Activo",null,null,null,null,null,null,null,null,null,null,null,null,null,"Cultivo"]
[null,null,null,null,"INGREDIENTE ACTIVO",null,null,null,null,null,null,null,null,null,null,null,null,null,null,"CULTIVO"]
[]
[]
[null,null,null,null,"NOAEL",null,null,null,{"$f":"IF(OR(E11=\"INGREDIENTE ACTIVO\",E11=\"\"),\"-\",VLOOKUP(E11,'ACT - NO(A)EL-Factor Absorción'!B:F,3,0))","v":"-"},null,null,null,"mg i.a./kg de peso corporal/día",null,null,null,null,null,null,"Coeficiente de Transferencia TC",null,null,null,{"$f":"IF(OR(T11=\"CULTIVO\",T11=\"\"),\"-\",VLOOKUP(T11,'ACT - Cultivo Coef. Transfer'!$B:$D,2,0))","v":"-"},null,null,null,"TC (cm2/hr)"]
[null,null,null,null,"Factor de Absorción Dermal",null,null,null,{"$f":"IF(OR(E11=\"INGREDIENTE ACTIVO\",E11=\"\"),\"-\",VLOOKUP(E11,'ACT - NO(A)EL-Factor Absorción'!B:F,4,0))","v":"-"},null,null,null,".",null,null,null,null,null,null,"DFR genérico",null,null,null,{"$f":"IF(OR(T11=\"CULTIVO\",T11=\"\"),\"-\",VLOOKUP(T11,'ACT - Cultivo Coef. Transfer'!$B:$D,3,0))","v":"-"},null,null,null,"µg/cm2"]
[]
[null,null,null,null,"Dosis de la etiqueta",null,null,null,null,null,null,null,null,null,null,null,null,null,null,null,null,null,"Kg/ha o L/ha"]
[]
[null,null,null,null,"Concentración Ingrediente Activo",null,null,null,null,null,null,null,null,null,null,null,null,null,null,null,null,null,"g i.a./Kg o g i.a./L"]
[]
[null,null,null,null,"Dosis de aplicación en unidades de ingrediente activo por hectárea",null,null,null,null,null,null,null,null,null,null,null,null,{"$f":"IF(OR(R17=\"\",R19=\"\"),\"-\",(R17*R19)/1000)","v":"-"},null,null,null,null,"Kg i.a./ha"]
[]
[null,null,null,null,"Jornada de trabajo",null,null,null,null,null,null,null,null,null,null,null,null,{"$f":"'Calc (ed)'!O2","v":8},null,null,null,null,"Horas/día"]
[]
[null,null,null,null,"Peso corporal del trabajador",null,null,null,null,null,null,null,null,null,null,null,null,{"$f":"'Calc (ed)'!O4","v":65},null,null,null,null,"Kilogramos de peso corporal"]
[]
[null,null,null,null,"Nivel de MOE (Definido por la autoridad)",null,null,null,null,null,null,null,null,null,null,null,null,{"$f":"'Calc (ed)'!O6","v":100},null,null,null,null,"(sin unidades)"]
[null,null,null,null,null,"RIESGO"]
[null,null,null,null,{"$f":"IFERROR(IF(OR(K8=\"\",K9=\"\",E11=\"\",T11=\"\",R17=\"\",R19=\"\"),\"-\",IF(AC36>=R27,\"Aceptable\",\"No Aceptable\")),\"-\")","v":"-"}]
[]
[]
[null,null,null,null,"PERÍODO DE REENTRADA"]
[null,null,null,null,{"$f":"IFERROR(IF(OR(K8=\"\",K9=\"\",E11=\"\",T11=\"\",R17=\"\",R19=\"\"),\"-\",IF(AC36>=R27,'Calc (ed)'!H8,'Calc (ed)'!H9)),\"-\")","v":"-"}]
[]
[null,null,null,null,"Día",null,null,"DFR \n(µg/cm2)",null,null,"TC (cm2/hr)",null,null,"Jornada de trabajo \n(horas/día)",null,null,"Factor de absorción dérmica",null,null,"Peso corporal del trabajador \n(Kg de peso corporal-día)",null,null,"Exposición\n(mg/Kg de p.c.-día)",null,null,"NOAEL\n(mg/Kg de p.c.-día)",null,null,"MOE"]
[null,null,null,null,0,null,null,{"$f":"IF(OR(K8=\"\",K9=\"\",E11=\"\",T11=\"\",R17=\"\",R19=\"\"),\"-\",R21*X15)","v":"-"},null,null,{"$f":"IF(OR(K8=\"\",K9=\"\",E11=\"\",T11=\"\",R17=\"\",R19=\"\"),\"-\",X14)","v":"-"},null,null,{"$f":"IF(OR(K8=\"\",K9=\"\",E11=\"\",T11=\"\",R17=\"\",R19=\"\"),\"-\",R23)","v":"-"},null,null,{"$f":"IF(OR(K8=\"\",K9=\"\",E11=\"\",T11=\"\",R17=\"\",R19=\"\"),\"-\",I15)","v":"-"},null,null,{"$f":"IF(OR(K8=\"\",K9=\"\",E11=\"\",T11=\"\",R17=\"\",R19=\"\"),\"-\",R25)","v":"-"},null,null,{"$f":"IF(OR(K8=\"\",K9=\"\",E11=\"\",T11=\"\",R17=\"\",R19=\"\"),\"-\",(H36*K36*N36*Q36*0.001)/T36)","v":"-"},null,null,{"$f":"IF(OR(K8=\"\",K9=\"\",E11=\"\",T11=\"\",R17=\"\",R19=\"\"),\"-\",I14)","v":"-"},null,null,{"$f":"IF(OR(K8=\"\",K9=\"\",E11=\"\",T11=\"\",R17=\"\",R19=\"\"),\"-\",Z36/W36)","v":"-"}]

{"sheet":"Calc (2)","index":3,"n_rows":36,"n_cols":31,"rows_kept":36,"cut":false,"hidden":false,"merged":[[0,0,1,0],[32,4,32,30],[31,4,31,30],[9,5,9,15],[9,19,9,29],[10,4,12,15],[10,16,14,18],[10,19,12,30],[13,12,13,15],[13,27,13,30],[14,12,14,15],[14,27,14,30],[13,4,13,7],[13,8,13,11],[13,19,13,22],[13,23,13,26],[14,4,14,7],[14,8,14,11],[14,19,14,22],[3,4,5,30],[7,4,7,9],[7,10,7,24],[8,4,8,9],[8,10,8,24],[14,23,14,26],[20,4,20,16],[20,17,20,21],[20,22,20,30],[22,4,22,16],[22,17,22,21],[22,22,22,30],[16,4,16,16],[16,17,16,21],[16,22,16,30],[18,4,18,16],[18,17,18,21],[18,22,18,30],[24,17,24,21],[24,22,24,30],[26,4,26,16],[26,17,26,21],[26,22,26,30],[35,4,36,6],[35,7,36,9],[35,10,36,12],[35,13,36,15],[24,4,24,16],[27,5,27,29],[28,4,30,30],[34,4,34,6],[34,7,34,9],[34,10,34,12],[34,13,34,15],[34,16,34,18],[34,19,34,21],[35,16,36,18],[35,19,36,21],[35,22,36,24],[35,25,36,27],[35,28,36,30],[34,22,34,24],[34,25,34,27],[34,28,34,30]]}
[]
[]
[null,null,null,null,null,null,null,null,null,null,null,null,null,null,null,null,null,null,null,null,null,null,null,null,null,null,null,null,null,null,{"$f":"IF(OR(K8=\"\",K9=\"\",E11=\"\",T11=\"\",R17=\"\",R19=\"\"),\"\",CONCATENATE(K9,\" (\",E11,\"-\",T11,\") \",E29))","v":""}]
[null,null,null,null,"CALCULADORA PARA LA DETERMINACIÓN DE LOS PERÍODOS DE REENTRADA EN PLAGUICIDAS QUÍMICOS DE USO AGRÍCOLA - MÉTODO 2"]
[]
[]
[]
[null,null,null,null,"Titular de Registro"]
[null,null,null,null,"Nombre Comercial\ndel Producto"]
[null,null,null,null,null,"Ingrediente Activo",null,null,null,null,null,null,null,null,null,null,null,null,null,"Cultivo"]
[null,null,null,null,"INGREDIENTE ACTIVO",null,null,null,null,null,null,null,null,null,null,null,null,null,null,"CULTIVO"]
[]
[]
[null,null,null,null,"NOAEL",null,null,null,0,null,null,null,"mg i.a./kg de peso corporal/día",null,null,null,null,null,null,"Coeficiente de Transferencia TC",null,null,null,{"$f":"IF(OR(T11=\"CULTIVO\",T11=\"\"),\"-\",VLOOKUP(T11,'ACT - Cultivo Coef. Transfer'!$B:$D,2,0))","v":"-"},null,null,null,"TC (cm2/hr)"]
[null,null,null,null,"Factor de Absorción Dermal",null,null,null,0,null,null,null,null,null,null,null,null,null,null,"DFR genérico",null,null,null,{"$f":"IF(OR(T11=\"CULTIVO\",T11=\"\"),\"-\",VLOOKUP(T11,'ACT - Cultivo Coef. Transfer'!$B:$D,3,0))","v":"-"},null,null,null,"µg/cm2"]
[]
[null,null,null,null,"Dosis de la etiqueta",null,null,null,null,null,null,null,null,null,null,null,null,null,null,null,null,null,"Kg/ha o L/ha"]
[]
[null,null,null,null,"Concentración Ingrediente Activo",null,null,null,null,null,null,null,null,null,null,null,null,null,null,null,null,null,"g i.a./Kg o g i.a./L"]
[]
[null,null,null,null,"Dosis de aplicación en unidades de ingrediente activo por hectárea",null,null,null,null,null,null,null,null,null,null,null,null,{"$f":"IF(OR(R17=\"\",R19=\"\"),\"-\",(R17*R19)/1000)","v":"-"},null,null,null,null,"Kg i.a./ha"]
[]
[null,null,null,null,"Jornada de trabajo",null,null,null,null,null,null,null,null,null,null,null,null,{"$f":"'Calc (ed)'!O2","v":8},null,null,null,null,"Horas/día"]
[]
[null,null,null,null,"Peso corporal del trabajador",null,null,null,null,null,null,null,null,null,null,null,null,{"$f":"'Calc (ed)'!O4","v":65},null,null,null,null,"Kilogramos de peso corporal"]
[]
[null,null,null,null,"Nivel de MOE (Definido por la autoridad)",null,null,null,null,null,null,null,null,null,null,null,null,{"$f":"'Calc (ed)'!O6","v":100},null,null,null,null,"(sin unidades)"]
[null,null,null,null,null,"RIESGO"]
[null,null,null,null,{"$f":"IFERROR(IF(OR(K8=\"\",K9=\"\",E11=\"\",T11=\"\",R17=\"\",R19=\"\"),\"-\",IF(AC36>=R27,\"Aceptable\",\"No Aceptable\")),\"-\")","v":"-"}]
[]
[]
[null,null,null,null,"PERÍODO DE REENTRADA"]
[null,null,null,null,{"$f":"IFERROR(IF(OR(K8=\"\",K9=\"\",E11=\"\",T11=\"\",R17=\"\",R19=\"\"),\"-\",IF(AC36>=R27,'Calc (ed)'!H8,'Calc (ed)'!H9)),\"-\")","v":"-"}]
[]
[null,null,null,null,"Día",null,null,"DFR \n(µg/cm2)",null,null,"TC (cm2/hr)",null,null,"Jornada de trabajo \n(horas/día)",null,null,"Factor de absorción dérmica",null,null,"Peso corporal del trabajador \n(Kg de peso corporal-día)",null,null,"Exposición\n(mg/Kg de p.c.-día)",null,null,"NOAEL\n(mg/Kg de p.c.-día)",null,null,"MOE"]
[null,null,null,null,{"$f":"IF(OR(K8=\"\",K9=\"\",E11=\"\",T11=\"\",R17=\"\",R19=\"\"),\"-\",\"0\")","v":"-"},null,null,{"$f":"IF(OR(K8=\"\",K9=\"\",E11=\"\",T11=\"\",R17=\"\",R19=\"\"),\"-\",R21*X15)","v":"-"},null,null,{"$f":"IF(OR(K8=\"\",K9=\"\",E11=\"\",T11=\"\",R17=\"\",R19=\"\"),\"-\",X14)","v":"-"},null,null,{"$f":"IF(OR(K8=\"\",K9=\"\",E11=\"\",T11=\"\",R17=\"\",R19=\"\"),\"-\",R23)","v":"-"},null,null,{"$f":"IF(OR(K8=\"\",K9=\"\",E11=\"\",T11=\"\",R17=\"\",R19=\"\"),\"-\",I15)","v":"-"},null,null,{"$f":"IF(OR(K8=\"\",K9=\"\",E11=\"\",T11=\"\",R17=\"\",R19=\"\"),\"-\",R25)","v":"-"},null,null,{"$f":"IF(OR(K8=\"\",K9=\"\",E11=\"\",T11=\"\",R17=\"\",R19=\"\"),\"-\",(H36*K36*N36*Q36*0.001)/T36)","v":"-"},null,null,{"$f":"IF(OR(K8=\"\",K9=\"\",E11=\"\",T11=\"\",R17=\"\",R19=\"\"),\"-\",I14)","v":"-"},null,null,{"$f":"IF(OR(K8=\"\",K9=\"\",E11=\"\",T11=\"\",R17=\"\",R19=\"\"),\"-\",Z36/W36)","v":"-"}]

{"sheet":"Calc (3)","index":4,"n_rows":36,"n_cols":37,"rows_kept":36,"cut":false,"hidden":false,"merged":[[33,4,33,10],[30,11,30,15],[31,11,31,15],[30,16,30,20],[31,16,31,20],[32,11,32,15],[33,11,33,15],[32,16,32,20],[33,16,33,20],[9,4,9,30],[10,4,10,30],[26,16,26,20],[26,21,26,25],[26,26,26,30],[25,21,25,25],[13,4,13,30],[16,4,16,30],[0,0,1,0],[3,4,5,30],[7,4,7,9],[7,10,7,24],[8,4,8,9],[8,10,8,24],[35,24,35,30],[35,4,35,23],[21,4,23,15],[21,16,23,18],[21,19,23,30],[31,26,31,30],[32,21,32,25],[33,21,33,25],[32,26,32,30],[29,26,29,30],[33,26,33,30],[29,11,29,15],[29,16,29,20],[29,21,29,25],[30,21,30,25],[25,16,25,20],[28,26,28,30],[32,4,32,10],[30,4,30,10],[31,4,31,10],[28,4,28,10],[29,4,29,10],[31,21,31,25],[30,26,30,30],[28,11,28,15],[28,16,28,20],[28,21,28,25],[27,16,27,20],[11,4,12,30],[14,4,15,30],[17,4,18,30],[20,4,20,30],[25,26,25,30],[25,11,25,15],[25,4,26,10],[26,11,26,15],[27,11,27,15],[27,4,27,10],[27,21,27,25],[27,26,27,30]]}
[]
[]
[null,null,null,null,null,null,null,null,null,null,null,null,null,null,null,null,null,null,null,null,null,null,null,null,null,null,null,null,null,null,{"$f":"IF(OR(AH8=FALSE,AH9=FALSE,AH12=FALSE,AH15=FALSE,AH18=FALSE,AH36=FALSE,AH22=FALSE,),\"\",CONCATENATE(K9,\" - \",AI14,\") PR \",Y36))","v":"MATAHONGUITO - IA1-(MANCOZEB)) PR 48 horas"}]
[null,null,null,null,"CALCULADORA PARA LA DETERMINACIÓN DEL PERÍODO DE REENTRADA (PR) POR EVALUACIÓN DE PELIGROSIDAD - MÉTODO 1"]
[]
[]
[]
[null,null,null,null,"Titular de Registro",null,null,null,null,null,"ICA ",null,null,null,null,null,null,null,null,null,null,null,null,null,null,null,null,null,null,null,null,null,null,{"$f":"IF(K8=\"\",FALSE,TRUE)","v":true}]
[null,null,null,null,"Nombre Comercial\ndel Producto",null,null,null,null,null,"MATAHONGUITO",null,null,null,null,null,null,null,null,null,null,null,null,null,null,null,null,null,null,null,null,null,null,{"$f":"IF(K9=\"\",FALSE,TRUE)","v":true}]
[]
[null,null,null,null,"Ingrediente Activo 1"]
[null,null,null,null,"MANCOZEB",null,null,null,null,null,null,null,null,null,null,null,null,null,null,null,null,null,null,null,null,null,null,null,null,null,null,null,null,{"$f":"IF(OR(E12=\"INGREDIENTE ACTIVO\"),FALSE,TRUE)","v":true}]
[]
[null,null,null,null,{"$f":"IF(AND(AF15=FALSE,AF18=TRUE),\"Ingrediente Activo\",IF(AF15=TRUE,\"Ingrediente Activo 2\",\"-\"))","v":"-"},null,null,null,null,null,null,null,null,null,null,null,null,null,null,null,null,null,null,null,null,null,null,null,null,null,null,null,null,null,{"$f":"CONCATENATE(\"IA1-(\",E12,\")\",IF(AF15=TRUE,CONCATENATE(\" - IA2-(\",E15,\")\"),\"\"),IF(AF18=TRUE,CONCATENATE(IF(AF15=TRUE,\" - IA3-(\",\" - IA2-(\"),E18,\")\"),\"\"))","v":"IA1-(MANCOZEB)"}]
[null,null,null,null,"INGREDIENTE ACTIVO",null,null,null,null,null,null,null,null,null,null,null,null,null,null,null,null,null,null,null,null,null,null,null,null,null,null,false,null,{"$f":"IF(AF15=FALSE,TRUE,IF(AND(AF15=TRUE,OR(E15=\"INGREDIENTE ACTIVO\",E15=E12,E15=E18)),FALSE,TRUE))","v":true}]
[]
[null,null,null,null,{"$f":"IF(AND(AF15=FALSE,AF18=TRUE),\"Ingrediente Activo 2\",IF(AF18=TRUE,\"Ingrediente Activo 3\",\"-\"))","v":"-"}]
[null,null,null,null,"INGREDIENTE ACTIVO",null,null,null,null,null,null,null,null,null,null,null,null,null,null,null,null,null,null,null,null,null,null,null,null,null,null,false,null,{"$f":"IF(AF18=FALSE,TRUE,IF(AND(AF18=TRUE,OR(E18=\"INGREDIENTE ACTIVO\",E18=E15,E18=E12)),FALSE,TRUE))","v":true}]
[]
[]
[null,null,null,null,"Inhibidor de la actividad colinesterasa eritrocitaria"]
[null,null,null,null,"¿Alguno de los ingredientes activos es inhibidor de la actividad colinesterasa eritrocitaria?",null,null,null,null,null,null,null,null,null,null,null,null,null,null,{"$f":"IF(AF22=\"\",\"-\",IF(AF22=1,'Calc (ed) (3)'!C4,'Calc (ed) (3)'!D4))","v":"Determinar PR con la siguiente tabla por toxicidad aguda del ingrediente activo o producto formulado."},null,null,null,null,null,null,null,null,null,null,null,2,null,{"$f":"IF(AF22=\"\",FALSE,TRUE)","v":true}]
[]
[]
[]
[null,null,null,null,"CLASIFICACIÓN",null,null,null,null,null,null,"Para el Producto:",null,null,null,null,"Para IA1",null,null,null,null,{"$f":"IF(AND(AF15=FALSE,AF18=TRUE),\"-\",IF(AF15=TRUE,\"Para IA2\",\"-\"))","v":"-"},null,null,null,null,{"$f":"IF(AND(AF15=FALSE,AF18=TRUE),\"Para IA2\",IF(AF18=TRUE,\"Para IA3\",\"-\"))","v":"-"}]
[null,null,null,null,null,null,null,null,null,null,null,{"$f":"IF(K9=\"\",\"-\",K9)","v":"MATAHONGUITO"},null,null,null,null,{"$f":"IF(E12=\"INGREDIENTE ACTIVO\",\"-\",E12)","v":"MANCOZEB"},null,null,null,null,{"$f":"IF(AND(AF15=TRUE,E15<>\"INGREDIENTE ACTIVO\"),E15,\"-\")","v":"-"},null,null,null,null,{"$f":"IF(AND(AF18=TRUE,E18<>\"INGREDIENTE ACTIVO\"),E18,\"-\")","v":"-"}]
[null,null,null,null,"DL50 (mg/kg)",null,null,null,null,null,null,5000,null,null,null,null,5000,null,null,null,null,"-",null,null,null,null,"-"]
[null,null,null,null,"Toxicidad cutánea aguda",null,null,null,null,null,null,{"$f":"IF(OR(L28=\"-\"),\"\",SUMIFS('Calc (ed) (3)'!D15:D18,'Calc (ed) (3)'!B15:B18,\"<\"&L28,'Calc (ed) (3)'!C15:C18,\">\"&L28))","v":4},null,null,null,null,{"$f":"IF(OR(Q28=\"-\"),\"\",SUMIFS('Calc (ed) (3)'!D15:D18,'Calc (ed) (3)'!B15:B18,\"<\"&Q28,'Calc (ed) (3)'!C15:C18,\">\"&Q28))","v":4},null,null,null,null,{"$f":"IF(OR(V28=\"-\",AF15=FALSE),\"\",SUMIFS('Calc (ed) (3)'!D15:D18,'Calc (ed) (3)'!B15:B18,\"<\"&V28,'Calc (ed) (3)'!C15:C18,\">\"&V28))","v":""},null,null,null,null,{"$f":"IF(OR(AA28=\"-\",AF18=FALSE),\"\",SUMIFS('Calc (ed) (3)'!D15:D18,'Calc (ed) (3)'!B15:B18,\"<\"&AA28,'Calc (ed) (3)'!C15:C18,\">\"&AA28))","v":""},null,null,null,null,null,null,{"$f":"IF(AF15=FALSE,TRUE,IF(AND(AF15=TRUE,OR(V29=\"\",V31=\"\",V33=\"\")),FALSE,TRUE))","v":true},{"$f":"IF($AF$22=2,'Calc (ed) (3)'!B8,\"\")","v":1},{"$f":"IF($AF$22=2,'Calc (ed) (3)'!C8,\"\")","v":"Severidad I"},{"$f":"IF($AF$22=2,'Calc (ed) (3)'!D8,\"\")","v":"Severidad I"}]
[null,null,null,null,"Período de Reentrada (PR) Horas",null,null,null,null,null,null,{"$f":"IF(OR($AF$22=1,L29=\"\"),\"-\",VLOOKUP(L29,'Calc (ed) (3)'!$B$8:$E$11,4,0))","v":12},null,null,null,null,{"$f":"IF(OR($AF$22=1,Q29=\"\"),\"-\",VLOOKUP(Q29,'Calc (ed) (3)'!$B$8:$E$11,4,0))","v":12},null,null,null,null,{"$f":"IF(AF15=FALSE,\"-\",IF(OR($AF$22=1,V29=\"\"),\"-\",VLOOKUP(V29,'Calc (ed) (3)'!$B$8:$E$11,4,0)))","v":"-"},null,null,null,null,{"$f":"IF(AF18=FALSE,\"-\",IF(OR($AF$22=1,AA29=\"\"),\"-\",VLOOKUP(AA29,'Calc (ed) (3)'!$B$8:$E$11,4,0)))","v":"-"},null,null,null,null,null,null,null,{"$f":"IF($AF$22=2,'Calc (ed) (3)'!B9,\"\")","v":2},{"$f":"IF($AF$22=2,'Calc (ed) (3)'!C9,\"\")","v":"Severidad II"},{"$f":"IF($AF$22=2,'Calc (ed) (3)'!D9,\"\")","v":"Severidad II"}]
[null,null,null,null,"Irritación ocular ",null,null,null,null,null,null,"Severidad IV",null,null,null,null,"Severidad III",null,null,null,null,null,null,null,null,null,null,null,null,null,null,null,null,{"$f":"IF(AF18=FALSE,TRUE,IF(AND(AF18=TRUE,OR(AA29=\"\",AA31=\"\",AA33=\"\")),FALSE,TRUE))","v":true},{"$f":"IF($AF$22=2,'Calc (ed) (3)'!B10,\"\")","v":3},{"$f":"IF($AF$22=2,'Calc (ed) (3)'!C10,\"\")","v":"Severidad III"},{"$f":"IF($AF$22=2,'Calc (ed) (3)'!D10,\"\")","v":"Severidad III"}]
[null,null,null,null,"Período de Reentrada (PR) Horas",null,null,null,null,null,null,{"$f":"IF(OR($AF$22=1,L31=\"\"),\"-\",VLOOKUP(L31,'Calc (ed) (3)'!$C$8:$E$11,3,0))","v":12},null,null,null,null,{"$f":"IF(OR($AF$22=1,Q31=\"\"),\"-\",VLOOKUP(Q31,'Calc (ed) (3)'!$C$8:$E$11,3,0))","v":24},null,null,null,null,{"$f":"IF(AF15=FALSE,\"-\",IF(OR($AF$22=1,V31=\"\"),\"-\",VLOOKUP(V31,'Calc (ed) (3)'!$C$8:$E$11,3,0)))","v":"-"},null,null,null,null,{"$f":"IF(AF18=FALSE,\"-\",IF(OR($AF$22=1,AA31=\"\"),\"-\",VLOOKUP(AA31,'Calc (ed) (3)'!$C$8:$E$11,3,0)))","v":"-"},null,null,null,null,null,null,null,{"$f":"IF($AF$22=2,'Calc (ed) (3)'!B11,\"\")","v":4},{"$f":"IF($AF$22=2,'Calc (ed) (3)'!C11,\"\")","v":"Severidad IV"},{"$f":"IF($AF$22=2,'Calc (ed) (3)'!D11,\"\")","v":"Severidad IV"}]
[null,null,null,null,"Irritación cutánea",null,null,null,null,null,null,"Severidad II",null,null,null,null,"Severidad IV"]
[null,null,null,null,"Período de Reentrada (PR) Horas",null,null,null,null,null,null,{"$f":"IF(OR($AF$22=1,L33=\"\"),\"-\",VLOOKUP(L33,'Calc (ed) (3)'!$C$8:$E$11,3,0))","v":48},null,null,null,null,{"$f":"IF(OR($AF$22=1,Q33=\"\"),\"-\",VLOOKUP(Q33,'Calc (ed) (3)'!$C$8:$E$11,3,0))","v":12},null,null,null,null,{"$f":"IF(AF15=FALSE,\"-\",IF(OR($AF$22=1,V33=\"\"),\"-\",VLOOKUP(V33,'Calc (ed) (3)'!$C$8:$E$11,3,0)))","v":"-"},null,null,null,null,{"$f":"IF(AF18=FALSE,\"-\",IF(OR($AF$22=1,AA33=\"\"),\"-\",VLOOKUP(AA33,'Calc (ed) (3)'!$C$8:$E$11,3,0)))","v":"-"}]
[]
[null,null,null,null,"Período de Reentrada (PR)",null,null,null,null,null,null,null,null,null,null,null,null,null,null,null,null,null,null,null,{"$f":"IF(AND($AF$22=2,OR(L29=\"\",Q29=\"\",L31=\"\",Q31=\"\",L33=\"\",Q33=\"\",AH29=FALSE,AH31=FALSE)),\"\",IF($AF$22=1,T22,CONCATENATE(MAX(L30:AE30,L32:AE32,L34:AE34),\" horas\")))","v":"48 horas"},null,null,null,null,null,null,null,null,{"$f":"IF(Y36=\"\",FALSE,TRUE)","v":true}]

{"sheet":"Calc (ed)","index":5,"n_rows":9,"n_cols":20,"rows_kept":9,"cut":false,"hidden":false,"merged":[[8,7,8,27],[8,1,8,6],[5,1,5,13],[5,14,5,18],[5,19,5,27],[7,1,7,6],[7,7,7,27],[0,0,0,28],[1,1,1,13],[1,14,1,18],[1,19,1,27],[3,1,3,13],[3,14,3,18],[3,19,3,27]]}
["DATOS FIJOS CALCULADORA"]
[null,"Jornada de trabajo",null,null,null,null,null,null,null,null,null,null,null,null,8,null,null,null,null,"Horas / día"]
[]
[null,"Peso corporal del trabajador",null,null,null,null,null,null,null,null,null,null,null,null,65,null,null,null,null,"Kilogramos de peso corporal"]
[]
[null,"Nivel de MOE (Definido por la autoridad)",null,null,null,null,null,null,null,null,null,null,null,null,100,null,null,null,null,"(sin unidades)"]
[]
[null,"Aceptable",null,null,null,null,null,"4 horas"]
[null,"No Aceptable",null,null,null,null,null,"Determinar por Evaluación de Peligro"]

{"sheet":"Calc (ed) (3)","index":6,"n_rows":18,"n_cols":5,"rows_kept":18,"cut":false,"hidden":false,"merged":[[1,1,1,3],[5,1,5,4],[0,1,0,3],[12,1,12,3]]}
[null,"DATOS FIJOS CALCULADORA"]
[null,"Inhibidor de la actividad colinesterasa eritrocitaria"]
[null,"¿Alguno de los ingredientes activos es inhibidor de la actividad colinesterasa eritrocitaria?","Si","No"]
[null,"Período de Reentrada PR (Horas)","72 horas","Determinar PR con la siguiente tabla por toxicidad aguda del ingrediente activo o producto formulado."]
[]
[null,"Clasificación por Toxicidad Aguda del Ingrediente Activo o Producto Formulado"]
[null,"Toxicidad cutánea aguda","Irritación ocular ","Irritación cutánea","Período de Reentrada PR (Horas)"]
[null,1,"Severidad I","Severidad I",48]
[null,2,"Severidad II","Severidad II",48]
[null,3,"Severidad III","Severidad III",24]
[null,4,"Severidad IV","Severidad IV",12]
[]
[null,"Clasificación Toxicidad Cutánea Aguda según Sistema Globalmente Armonizado SGA"]
[null,"DL50 (mg/kg) - Minimo","DL50 (mg/kg) - Minimo","Categoría "]
[null,0,50.01,1]
[null,50.000010000000003,200.01,2]
[null,200.00001,1000.01,3]
[null,1000.00001,999999999,4]

{"sheet":"Factor Absorción","index":7,"n_rows":208,"n_cols":6,"rows_kept":208,"cut":false,"hidden":false,"merged":[]}
[null,"INGREDIENTE ACTIVO","USO ESPECÍFICO","NOAEL o NOEL utilizado para la determinación del MOE (EPA) ó AOEL (EFSA),\nmg i.a./kg de peso corporal/día","FACTOR DE ABSORCIÓN DERMAL, %","FUENTE (EPA o EFSA)"]
[null,"ABAMECTIN","INSECTICIDA - ACARICIDA",0.25,0.01,"EPA"]
[null,"ACEPHATE","INSECTICIDA",12,1,"EPA"]
[null,"ACEQUINOCYL","INSECTICIDA",16,0.12230000000000001,"EPA"]
[null,"ACETAMIPRID","INSECTICIDA",10,0.3,"EPA"]
[null,"ACIBENZOLAR S METHYL","BACTERICIDA",10,1,"EPA/EFSA"]
[null,"ACRINATHRIN","ACARICIDA",1,8.3000000000000004E-2,"EFSA"]
[null,"ALPHA CYPERMETHRIN","INSECTICIDA",2.2999999999999998,0.1,"EFSA"]
[null,"ALUMINIUM PHOSPHIDE","INSECTICIDA",1.1000000000000001,0.1,"EFSA"]
[null,"AMETOCTRADIN ","FUNGICIDA",1083,0.03,"EFSA"]
[null,"AMITRAZ","INSECTICIDA",0.125,1.6E-2,"EPA"]
[null,"AZOXYSTROBIN","FUNGICIDA",20,0.15,"EPA"]
[null,"BENALAXYL","FUNGICIDA",5.8,0.1,"EFSA"]
[null,"BENFURACARB","INSECTICIDA",0.01,1,"EFSA"]
[null,"BENOMYL","FUNGICIDA",45,0.1,"EPA"]
[null,"BENZYLADENINE","REGULADOR FISIOLOGICO",41,7.0000000000000007E-2,"EFSA"]
[null,"BETA CYFLUTHRIN","INSECTICIDA",2.36,0.05,"EPA"]
[null,"BETA CYPERMETHRIN","INSECTICIDA",0.6,2.5000000000000001E-2,"EPA"]
[null,"BIFENAZATE","ACARICIDA",100,0.25,"EPA"]
[null,"BIFENTHRIN","INSECTICIDA ",1.5,0.18,"EFSA"]
[null,"BOSCALID","FUNGICIDA",21.8,0.15,"EPA"]
[null,"BROMUCONAZOLE","FUNGICIDA",13.8,0.05,"EFSA"]
[null,"BUPIRIMATE","FUNGICIDA",50,0.12,"EFSA"]
[null,"BUPROFEZIN","INSECTICIDA",13,1,"EPA"]
[null,"CADUSAFOS","NEMATICIDA",6.7000000000000004E-2,1,"EFSA"]
[null,"CALCIUM POLYSULPHIDE","FUNGICIDA",150,1,"EFSA"]
[null,"CAPTAN","FUNGICIDA",0.1,0.1,"EPA"]
[null,"CARBARYL","INSECTICIDA",1,0.1,"EFSA"]
[null,"CARBENDAZIM","FUNGICIDA",10,0.1,"EFSA"]
[null,"CARBOFURAN","INSECTICIDA",0.03,0.05,"EFSA"]
[null,"CARBOXIN","FUNGICIDA",30,1,"EPA"]
[null,"CARFENTRAZONE ETHYL","HERBICIDA ",58,0.72,"EFSA"]
[null,"CHLORANTRANILIPROLE","INSECTICIDA ",1000,1.7000000000000001E-2,"EFSA"]
[null,"CHLORFENAPYR","INSECTICIDA",5,1.2E-2,"EPA"]
[null,"CHLOROTHALONIL","FUNGICIDA",60,0.12,"EPA"]
[null,"CHLORPROPHAM","REGULADOR DE CRECIMIENTO",10,1,"EFSA"]
[null,"CHLORPYRIFOS","INSECTICIDA",0.1,1,"EFSA"]
[null,"CHROMAFENOZIDE","INSECTICIDA",193,0.63,"EFSA"]
[null,"CLOFENTEZINE","ACARICIDA",2.65,0.05,"EFSA"]
[null,"CLOTHIANIDIN","INSECTICIDA",10,2.2499999999999999E-2,"EFSA"]
[null,"COPPER HYDROXIDE","FUNGICIDA",16,1.1999999999999999E-3,"EFSA"]
[null,"COPPER METALLIC","FUNGICIDA",16,1.1999999999999999E-3,"EFSA"]
[null,"COPPER OXYCHLORIDE","FUNGICIDA",1000,1,"EPA"]
[null,"COPPER SULFATE PENTAHYDRATE","FUNGICIDA",1000,1,"EPA"]
[null,"CYANTRANILIPROLE","INSECTICIDA",5.7,0.03,"EPA"]
[null,"CYAZOFAMID","FUNGICIDA",94.8,0.37,"EPA"]
[null,"CYFLUTHRIN","INSECTICIDA",2.36,0.05,"EPA"]
[null,"CYMOXANIL","FUNGICIDA",4,7.4999999999999997E-2,"EPA"]
[null,"CYPERMETHRIN","INSECTICIDA",0.6,2.5000000000000001E-2,"EPA"]
[null,"CYPROCONAZOLE","FUNGICIDA",6,2.8000000000000001E-2,"EFSA"]
[null,"CYPRODINIL","FUNGICIDA",19.3,1.23E-2,"EPA"]
[null,"CYROMAZINE","INSECTICIDA",23,3.8E-3,"EPA"]
[null,"DAMINOZIDE","REGULADOR FISIOLOGICO",80.5,0.13,"EFSA"]
[null,"DELTAMETHRIN","INSECTICIDA",1000,2E-3,"EPA"]
[null,"DIAZINON","INSECTICIDA",0.06,0.4,"EFSA"]
[null,"DICLORAN","FUNGICIDA",2.8,0.09,"EFSA"]
[null,"DIETHOFENCARB","FUNGICIDA",78.2,0.06,"EFSA"]
[null,"DIFENOCONAZOLE","FUNGICIDA",25,0.37,"EFSA"]
[null,"DIFLUBENZURON","INSECTICIDA",8,5.0000000000000001E-3,"EPA"]
[null,"DIMETHIPIN","DEFOLIANTE",2.1800000000000002,1,"EPA"]
[null,"DIMETHOATE","INSECTICIDA",0.2,0.02,"EFSA"]
[null,"DIMETHOMORPH","FUNGICIDA",15,0.2,"EFSA"]
[null,"DINOTEFURAN","INSECTICIDA",1000,0.3,"EPA/EFSA"]
[null,"DIQUAT","HERBICIDA",1,3.0000000000000001E-3,"EFSA"]
[null,"DIURON","HERBICIDA",10,0.01,"EPA"]
[null,"DODEMORPH ACETATE","FUNGICIDA",8.1999999999999993,0.2,"EFSA"]
[null,"DODINE ","FUNGICIDA ",2,1,"EPA"]
[null,"EMAMECTIN","INSECTICIDA ",5,0.1,"EPA"]
[null,"EPOXICONAZOLE","FUNGICIDA",1.6,0.5,"EFSA"]
[null,"ESFENVALERATE","INSECTICIDA",2.5,0.25,"EPA/EFSA"]
[null,"ETHABOXAM","FUNGICIDA",30,1,"EPA"]
[null,"ETHEPHON","REGULADOR FISIOLOGICO",22,1.4999999999999999E-2,"EFSA"]
[null,"ETOFENPROX","INSECTICIDA",20,0.35,"EPA"]
[null,"ETOXAZOLE","INSECTICIDA",61.8,1,"EPA"]
[null,"ETRIDIAZOLE","FUNGICIDA",15,1,"EPA"]
[null,"FAMOXADONE","FUNGICIDA",1.4,0.05,"EPA"]
[null,"FENAMIDONE","FUNGICIDA",10.4,0.1,"EPA"]
[null,"FENAMIPHOS","NEMATICIDA",8.3000000000000004E-2,0.05,"EFSA"]
[null,"FENARIMOL","FUNGICIDA",0.6,2.5999999999999999E-2,"EPA/EFSA"]
[null,"FENAZAQUIN ","ACARICIDA",10,0.14000000000000001,"EFSA"]
[null,"FENBUCONAZOLE","FUNGICIDA",1000,1,"EPA"]
[null,"FENHEXAMID","FUNGICIDA",1000,0.2,"EPA"]
[null,"FENITROTHION","INSECTICIDA",1.32,0.20899999999999999,"EFSA"]
[null,"FENPROPIDIN","FUNGICIDA",5,7.1999999999999995E-2,"EFSA"]
[null,"FENPROPIMORPH","FUNGICIDA",0.7,0.1,"EFSA"]
[null,"FENPYROXIMATE","ACARICIDA",1.5,5.0000000000000001E-4,"EPA"]
[null,"FENTIN HIDROXIDE","FUNGICIDA",3,0.01,"EPA"]
[null,"FENVALERATE","INSECTICIDA",2.5,0.25,"EPA"]
[null,"FIPRONIL","INSECTICIDA",5,0.01,"EPA"]
[null,"FLONICAMID","INSECTICIDA",12.11,0.13,"EPA/EFSA"]
[null,"FLUAZINAM","FUNGICIDA",1,1.4999999999999999E-2,"EFSA"]
[null,"FLUBENDIAMIDE","INSECTICIDA ",2.58,0.02,"EFSA"]
[null,"FLUDIOXONIL","FUNGICIDA",58.5,8.9999999999999993E-3,"EFSA"]
[null,"FLUFENOXURON","INSECTICIDA",4,0.02,"EFSA"]
[null,"FLUMETRALIN","REGULADOR FISIOLOGICO",13.5,0.09,"EPA/EFSA"]
[null,"FLUOPICOLIDE","FUNGICIDA",7.4,2.75E-2,"EFSA"]
[null,"FLUOXASTROBIN","FUNGICIDA",3,0.04,"EFSA"]
[null,"FLUSILAZOLE","FUNGICIDA",4,0.3,"EPA"]
[null,"FLUTOLANIL","FUNGICIDA",80,1,"EPA"]
[null,"FLUTRIAFOL","FUNGICIDA",400,0.21,"EPA"]
[null,"FLUXAPYROXAD","FUNGICIDA",6,0.16,"EFSA"]
[null,"FOLPET","FUNGICIDA",10,2.7E-2,"EPA"]
[null,"FOMESAFEN","HERBICIDA",0.5,0.2,"EPA"]
[null,"FORMETANATE","INSECTICIDA",0.4,0.04,"EFSA"]
[null,"FOSETYL ALUMINUM","FUNGICIDA",1050,0.01,"EFSA"]
[null,"FURALAXYL","FUNGICIDA",5.8,0.1,"EFSA"]
[null,"FURALAXYL M","FUNGICIDA",5.8,0.1,"EFSA"]
[null,"GAMMA CIHALOTHRIN","INSECTICIDA ",0.5,0.12,"EFSA"]
[null,"GIBBERELLIC ACID","REGULADOR FISIOLOGICO",680,1,"EFSA"]
[null,"GIBBERELLIN GA4-GA7","REGULADOR FISIOLOGICO",500,0.18,"EFSA"]
[null,"GLUFOSINATE AMMONIUM","HERBICIDA",6.3,0.09,"EPA"]
[null,"GLYPHOSATE","HERBICIDA",2000,0.01,"EPA"]
[null,"HEXACONAZOLE","FUNGICIDA",2.5,1,"EPA"]
[null,"HEXAFLUMURON","INSECTICIDA",0.5,0.125,"EFSA"]
[null,"HEXYTHIAZOX","ACARICIDA",2.5,0.02,"EPA"]
[null,"IMAZALIL","FUNGICIDA",5,0.46,"EFSA"]
[null,"IMIDACLOPRID","INSECTICIDA",10,7.0000000000000007E-2,"EPA"]
[null,"INDOXACARB","INSECTICIDA",3.1,1,"EPA"]
[null,"IODINE POLYVINYLPYRROLIDONE","FUNGICIDA",1000,1,"EPA/EFSA"]
[null,"IPCONAZOLE","FUNGICIDA",10,0.03,"EPA"]
[null,"ISOPROTHIOLANE","FUNGICIDA",3.5,1,"EFSA"]
[null,"ISOPYRAZAM ","FUNGICIDA",30,0.45800000000000002,"EPA"]
[null,"KASUGAMYCIN","FUNGICIDA",11,1,"EPA"]
[null,"KRESOXIM METHYL","FUNGICIDA",146,0.13,"EFSA"]
[null,"LAMBDA CYHALOTHRIN","INSECTICIDA",0.5,3.0999999999999999E-3,"EFSA"]
[null,"LUFENURON","INSECTICIDA",9.6999999999999993,9.2999999999999999E-2,"EFSA"]
[null,"MAGNESIUM PHOSPHIDE","INSECTICIDA",1.1000000000000001,1,"EFSA"]
[null,"MALATHION","INSECTICIDA",34,0.15,"EFSA"]
[null,"MANCOZEB","FUNGICIDA",4.83,0.01,"EPA"]
[null,"MANDIPROPAMID","FUNGICIDA",25,0.06,"EFSA"]
[null,"MCPA","HERBICIDA",10.9,2.1999999999999999E-2,"EFSA"]
[null,"MEPANIPYRIM","FUNGICIDA",7.3,1,"EPA"]
[null,"METAFLUMIZONE","INSECTICIDA",100,7.0000000000000001E-3,"EPA/EFSA"]
[null,"METALAXYL M","FUNGICIDA",8,0.22900000000000001,"EFSA"]
[null,"METCONAZOLE","FUNGICIDA",4,0.65,"EFSA"]
[null,"METHAMIDOPHOS","INSECTICIDA",0.745,0.1,"EPA"]
[null,"METHIOCARB","INSECTICIDA",1.3,0.02,"EFSA"]
[null,"METHOMYL","INSECTICIDA",90,1,"EPA"]
[null,"METHOXYFENOZIDE","INSECTICIDA",1000,0.02,"EPA"]
[null,"METHYL PARATHION","INSECTICIDA",0.125,1,"EPA/EFSA"]
[null,"METIRAM","FUNGICIDA",6.7,1,"EPA"]
[null,"METRAFENONE","FUNGICIDA ",79,0.19,"EPA"]
[null,"MILBEMECTIN","INSECTICIDA",3,0.1,"EFSA"]
[null,"MSMA","HERBICIDA",3.2,1,"EPA/EFSA"]
[null,"MYCLOBUTANIL","FUNGICIDA",100,0.5,"EPA"]
[null,"NOVALURON","INSECTICIDA ",8.3000000000000007,0.1,"EPA"]
[null,"OMETHOATE","INSECTICIDA",0.1,1.5E-3,"EFSA"]
[null,"OXADIXYL","FUNGICIDA",12.5,1,"EFSA"]
[null,"OXAMYL","INSECTICIDA",50,4.0000000000000002E-4,"EPA/EFSA"]
[null,"OXYCARBOXIN","FUNGICIDA",400,1,"EPA"]
[null,"OXYDEMETON-METHYL","INSECTICIDA",0.3,0.2,"EPA/EFSA"]
[null,"OXYTETRACYCLINE","BACTERICIDA",0.05,1,"EPA"]
[null,"PACLOBUTRAZOL","REGULADOR FISIOLOGICO",20,3.6999999999999998E-2,"EFSA"]
[null,"PARAQUAT","HERBICIDA",0.56000000000000005,3.0000000000000001E-3,"EPA"]
[null,"PENCONAZOLE","FUNGICIDA",50,4.2999999999999997E-2,"EFSA"]
[null,"PENTHIOPYRAD","FUNGICIDA",75,0.4,"EPA"]
[null,"PERMETHRIN","INSECTICIDA",1000,5.7000000000000002E-2,"EPA"]
[null,"PHOSALONE","INSECTICIDA",0.9,7.0000000000000001E-3,"EFSA"]
[null,"PHOSPHOROUS ACID","FUNGICIDA",300,1,"EFSA"]
[null,"PICOXYSTROBIN","FUNGICIDA",32.200000000000003,1,"EPA"]
[null,"PIPERONYL BUTOXIDE","SINERGISTA",1000,1,"EPA/EFSA"]
[null,"PIRIMICARB","INSECTICIDA",38.799999999999997,0.13,"EFSA"]
[null,"PIRIMIPHOS METHYL","INSECTICIDA",15,0.09,"EFSA"]
[null,"PROCHLORAZ","FUNGICIDA",2.5,3.9E-2,"EFSA"]
[null,"PROCYMIDONE","FUNGICIDA",3.5,1,"EPA"]
[null,"PROPAMOCARB","FUNGICIDA ",150,0.6,"EPA"]
[null,"PROPARGITE","ACARICIDA",6,0.14000000000000001,"EPA"]
[null,"PROPICONAZOLE","FUNGICIDA",30,1.7600000000000001E-2,"EPA"]
[null,"PROPINEB","FUNGICIDA",250,1.37E-2,"EFSA"]
[null,"PYRACLOSTROBIN","FUNGICIDA",5,0.14000000000000001,"EPA"]
[null,"PYRIDABEN","ACARICIDA",4.9400000000000004,1,"EPA"]
[null,"PYRIDALYL","INSECTICIDA",2.8,3.6999999999999998E-2,"EPA"]
[null,"PYRIMETHANIL","FUNGICIDA",23,0.51,"EPA"]
[null,"PYRIPROXYFEN","INSECTICIDA",35.1,0.3,"EPA"]
[null,"QUINCLORAC","HERBICIDA",37.5,1,"EPA"]
[null,"SPINETORAM","INSECTICIDA",1000,1,"EPA"]
[null,"SPINOSAD","INSECTICIDA",1000,1,"EPA"]
[null,"SPIROMESIFEN","INSECTICIDA",1000,0.03,"EFSA"]
[null,"SPIROTETRAMAT ","INSECTICIDA ",5,2.1499999999999998E-2,"EPA"]
[null,"SPIROXAMINE","FUNGICIDA",2.5,0.4,"EFSA"]
[null,"SULFOXAFLOR","INSECTICIDA",75,2.4E-2,"EPA"]
[null,"SULFUR","FUNGICIDA",400,1,"EFSA"]
[null,"TAU-FLUVALINATE","INSECTICIDA",1,3.09E-2,"EFSA"]
[null,"TCMTB","FUNGICIDA",16.2,1,"EPA"]
[null,"TEBUCONAZOLE","FUNGICIDA",3,0.13,"EFSA"]
[null,"TEBUFENOZIDE","INSECTICIDA",2,1,"EPA"]
[null,"TEFLUBENZURON","INSECTICIDA",8,0.2,"EFSA"]
[null,"TERBUFOS","INSECTICIDA",0.15,1,"EPA"]
[null,"TETRACONAZOLE","FUNGICIDA",5.9,0.12,"EPA"]
[null,"THIABENDAZOLE","FUNGICIDA",50,3.3999999999999998E-3,"EPA"]
[null,"THIACLOPRID","INSECTICIDA",1.2,0.05,"EPA"]
[null,"THIAMETHOXAM","INSECTICIDA",8.23,1.0999999999999999E-2,"EPA"]
[null,"THIDIAZURON","REGULADOR FISIOLOGICO",1000,1.18E-2,"EPA"]
[null,"THIODICARB","INSECTICIDA",7,0.03,"EFSA"]
[null,"THIOPHANATE METHYL","FUNGICIDA",100,7.0000000000000007E-2,"EPA"]
[null,"THIRAM ","FUNGICIDA",300,0.01,"EPA"]
[null,"TOLFENPYRAD","INSECTICIDA",10,1,"EPA"]
[null,"TRIADIMEFON","FUNGICIDA",300,0.17,"EPA/EFSA"]
[null,"TRICHLORFON","INSECTICIDA",100,0.1,"EPA"]
[null,"TRIFLOXYSTROBIN","FUNGICIDA ",250,0.33,"EPA"]
[null,"TRIFLUMIZOLE","FUNGICIDA",1.5,3.5000000000000003E-2,"EPA"]
[null,"TRIFLUMURON","INSECTICIDA",3.6,0.05,"EFSA"]
[null,"TRIFORINE","FUNGICIDA",23,1,"EPA"]
[null,"TRINEXAPAC ETHYL","REGULADOR FISIOLOGICO",31.6,0.1,"EPA/EFSA"]
[null,"VALIFENALATE","FUNGICIDA",7,0.04,"EFSA"]
[null,"ZETA CYPERMETHRIN","INSECTICIDA",7.5,0.1,"EPA"]
[null,"ZIRAM","FUNGICIDA",7.5,0.01,"EPA"]
[null,"ZOXAMIDE","FUNGICIDA",1.66,8.7999999999999995E-2,"EPA"]

{"sheet":"Cultivo Coef","index":8,"n_rows":93,"n_cols":6,"rows_kept":93,"cut":false,"hidden":false,"merged":[]}
[null,"CULTIVO","COEFICIENTE DE TRANSFERENCIA","DFR Genérico, µg/cm2","COMENTARIOS","REPRESENTANTE GRUPO DE CULTIVOS DE LA EPA"]
[null,"Acedera",1100,2.5,null,"Vegetable, leafy except brassica Crop Group 4"]
[null,"Aguacate",1400,2.5,null,"Tree Fruit Evergreen"]
[null,"Ahuyama",550,2.5,null,"Vegetable, cucurbit,squash/cucumber Crop Group 9B"]
[null,"Ají",1100,2.5,null,"Vegetable, Fruiting Crop Groups 8 - 10"]
[null,"Alcachofa",1100,2.5,null,"Vegetable, stem/stalk, Crop Group 99-No Name"]
[null,"Algodón",1100,2.5,null,"Oilseed Crop Group 20"]
[null,"Almendra",580,2.5,null,"Tree \"nut\" Group"]
[null,"Anón",1400,2.5,null,"Tree Fruit Evergreen"]
[null,"Apio",1100,2.5,null,"Vegetable, leafy brassica Crop Group 5"]
[null,"Arándano",1400,2.5,null,"Bushberry Crop Group 13-07B"]
[null,"Arracacha",1100,2.5,null,"Vegetable, root/tuber Crop Group 1"]
[null,"Arroz",1100,2.5,null,"Grain, cereal Crop Group 15"]
[null,"Arveja",1100,2.5,null,"Vegetable, legume, edible pod Crop Group 6A"]
[null,"Avellana",580,2.5,null,"Tree \"nut\" Group"]
[null,"Avena",210,2.5,null,"Grain, cereal Crop Group 17"]
[null,"Badea",1400,2.5,null,"Vine/trellis Crop Group 13-07"]
[null,"Banano",1100,0.6]
[null,"Berenjena",1100,2.5,null,"Vegetable, Fruiting Crop Groups 8 - 10"]
[null,"Brócoli",4200,2.5,null,"Vegetable, brassica head and stem Crop Group 5A"]
[null,"Café",1400,2.5]
[null,"Calabacín",550,2.5,null,"Vegetable, cucurbit,squash/cucumber Crop Group 9B"]
[null,"Caña de azúcar",1100,2.5,null,"No Group Name"]
[null,"Cebada",210,2.5,null,"Grain, cereal Crop Group 18"]
[null,"Cebolla",1400,2.5,null,"Vegetable, Bulb Crop Group 3-07"]
[null,"Cebolla china",1400,2.5,null,"Leafy Green  Crop Group 4A"]
[null,"Cebolla puerro",1400,2.5,null,"Vegetable, Bulb Crop Group 3-07"]
[null,"Cebollín",1400,2.5,null,"Vegetable, Bulb Crop Group 3-07"]
[null,"Chirimoya",1400,2.5,null,"Tree Fruit Evergreen"]
[null,"Chulupa",1400,2.5,null,"Vine/trellis Crop Group 13-07"]
[null,"Ciruela",1400,2.5,null,"Fruit, Stone Crop Group 12-12"]
[null,"Col de Bruselas",4200,2.5,null,"Vegetable, brassica head and stem Crop Group 5A"]
[null,"Coliflor",4200,2.5,null,"Vegetable, brassica head and stem Crop Group 5A"]
[null,"Curuba",1400,2.5,null,"Vine/trellis Crop Group 13-07"]
[null,"Durazno",1400,2.5,null,"Fruit, Stone Crop Group 12-12"]
[null,"Espárrago",1100,2.5,null,"Vegetable, stem/stalk, Crop Group 99-No Name"]
[null,"Espinaca",1100,2.5,null,"Vegetable, leafy except brassica Crop Group 4"]
[null,"Feijoa",1400,2.5,null,"Tree Fruit Evergreen"]
[null,"Frambuesa",1400,2.5,null,"Caneberry Crop Group 13-07A"]
[null,"Fresa",1100,2.5,null,"Berry, low growing Crop Group 13-07G"]
[null,"Frijol ",1100,2.5,null,"Pea and bean, dried shelled, except soybean Crop Group 6c"]
[null,"Granadilla",1400,2.5,null,"Vine/trellis Crop Group 13-07"]
[null,"Guanábana",1400,2.5,null,"Tree Fruit Evergreen"]
[null,"Guayaba",1400,2.5,null,"Tree Fruit Evergreen"]
[null,"Gulupa",1400,2.5,null,"Vine/trellis Crop Group 13-07"]
[null,"Haba",1100,2.5,null,"Vegetable, legume, edible pod Crop Group 6A"]
[null,"Habichuela",1100,2.5,null,"Vegetable, legume, edible pod Crop Group 6A"]
[null,"Higo",1400,2.5,null,"Tree Fruit Decidious "]
[null,"Lechuga",1100,2.5,null,"Vegetable, leafy except brassica Crop Group 4"]
[null,"Lima",1400,2.5,null,"Fruit, Citrus Crop Group 10-10B"]
[null,"Limón",1400,2.5,null,"Fruit, Citrus Crop Group 10-10B"]
[null,"Lulo",1100,2.5,null,"Vegetable, Fruiting Crop Groups 8 - 10"]
[null,"Macadamia",580,2.5,null,"Tree \"nut\" Group"]
[null,"Maíz",1100,2.5,null,"Grain, cereal Crop Group 15"]
[null,"Mandarina",1400,2.5,null,"Fruit, Citrus Crop Group 10-10A"]
[null,"Mango",1400,2.5,null,"Tree Fruit Evergreen"]
[null,"Maní",580,2.5,null,"Tree \"nut\" Group"]
[null,"Manzana",1400,2.5,null,"Fruit, pome Crop Group 11-10"]
[null,"Maracuyá",1400,2.5,null,"Vine/trellis Crop Group 13-07"]
[null,"Melón",550,2.5,null,"Vegetable, cucurbit, melon Crop Group 9A"]
[null,"Mora",1400,2.5,null,"Caneberry Crop Group 13-07A"]
[null,"Naranja",1400,2.5,null,"Fruit, Citrus Crop Group 10-10A"]
[null,"Ñame",1100,2.5,null,"Vegetable, root/tuber Crop Group 1"]
[null,"Ornamentales",4800,2.5]
[null,"Palma aceitera",1400,2.5,null,"Tree Fruit, Evergreen, Date Crop"]
[null,"Papa",210,2.5,null,"Vegetable, root/tuber Crop Group 1"]
[null,"Papaya",1400,2.5,null,"Tree Fruit Evergreen"]
[null,"Pepino",550,2.5,null,"Vegetable, cucurbit,squash/cucumber Crop Group 9B"]
[null,"Pera",1400,2.5,null,"Fruit, pome Crop Group 11-10"]
[null,"Perejil",1100,2.5,null,"Vegetable, leafy except brassica Crop Group 4"]
[null,"Pimiento",1100,2.5,null,"Vegetable, Fruiting Crop Groups 8 - 10"]
[null,"Pimiento dulce",1100,2.5,null,"Vegetable, Fruiting Crop Groups 8 - 10"]
[null,"Piña",1100,2.5,null,"Vegetable, stem/stalk, Crop Group 99-No Name"]
[null,"Pitahaya",1100,2.5,null,"Shrub cactus with fruit at end of stalks"]
[null,"Plátano",1100,0.6]
[null,"Rábano",1100,2.5,null,"Vegetable, root/tuber Crop Group 1"]
[null,"Remolacha",1100,2.5,null,"Vegetable, root/tuber Crop Group 1"]
[null,"Repollo/Col",4200,2.5,null,"Vegetable, brassica head and stem Crop Group 5A"]
[null,"Sábila ",1100,2.5,null,"Vegetable, stem/stalk, Crop Group 99-No Name"]
[null,"Sandía",550,2.5,null,"Vegetable, cucurbit,squash/cucumber Crop Group 9B"]
[null,"Sapote/Zapote",1400,2.5,null,"Fruit, Stone Crop Group 12-12"]
[null,"Sorgo",210,2.5,null,"Grain, cereal Crop Group 15"]
[null,"Soya",1100,2.5,null,"Vegetable, legume Crop Group 6"]
[null,"Tabaco",800,2.5,null,"Bunch and Bundle, No Crop Group"]
[null,"Tangelo",1400,2.5,null,"Fruit, Citrus Crop Group 10-10A"]
[null,"Tatsoi",4200,2.5,null,"Vegetable, brassica head and stem Crop Group 5A"]
[null,"Tomate",1100,2.5,null,"Vegetable, Fruiting Crop Groups 8 - 10"]
[null,"Tomate de árbol",1100,2.5,null,"Vegetable, Fruiting Crop Groups 8 - 10"]
[null,"Toronja/Pomelo",1400,2.5,null,"Fruit, Citrus Crop Group 10-10C"]
[null,"Trigo",210,2.5,null,"Grain, cereal Crop Group 16"]
[null,"Uchuva ",1100,2.5,null,"Vegetable, Fruiting Crop Groups 8 - 10"]
[null,"Uva",10100,2.5,null,"Fruit, small vine climbing except fuzzy kiwi Crop Group 13-07F"]
[null,"Zanahoria",1100,2.5,null,"Vegetable, root/tuber Crop Group 1"]

{"sheet":"ACT - NO(A)EL-Factor Absorción","index":9,"n_rows":208,"n_cols":6,"rows_kept":208,"cut":false,"hidden":false,"merged":[]}
[null,"INGREDIENTE ACTIVO","USO ESPECÍFICO","NOAEL o NOEL utilizado para la determinación del MOE (EPA) ó AOEL (EFSA),\nmg i.a./kg de peso corporal/día","FACTOR DE ABSORCIÓN DERMAL, %","FUENTE (EPA o EFSA)"]
[null,"ABAMECTIN","INSECTICIDA - ACARICIDA",0.25,0.01,"EPA"]
[null,"ACEPHATE","INSECTICIDA",12,1,"EPA"]
[null,"ACEQUINOCYL","INSECTICIDA",16,0.12230000000000001,"EPA"]
[null,"ACETAMIPRID","INSECTICIDA",10,0.3,"EPA"]
[null,"ACIBENZOLAR S METHYL","BACTERICIDA",10,1,"EPA/EFSA"]
[null,"ACRINATHRIN","ACARICIDA",1,8.3000000000000004E-2,"EFSA"]
[null,"ALPHA CYPERMETHRIN","INSECTICIDA",2.2999999999999998,0.1,"EFSA"]
[null,"ALUMINIUM PHOSPHIDE","INSECTICIDA",1.1000000000000001,0.1,"EFSA"]
[null,"AMETOCTRADIN ","FUNGICIDA",1083,0.03,"EFSA"]
[null,"AMITRAZ","INSECTICIDA",0.125,1.6E-2,"EPA"]
[null,"AZOXYSTROBIN","FUNGICIDA",20,0.15,"EPA"]
[null,"BENALAXYL","FUNGICIDA",5.8,0.1,"EFSA"]
[null,"BENFURACARB","INSECTICIDA",0.01,1,"EFSA"]
[null,"BENOMYL","FUNGICIDA",45,0.1,"EPA"]
[null,"BENZYLADENINE","REGULADOR FISIOLOGICO",41,7.0000000000000007E-2,"EFSA"]
[null,"BETA CYFLUTHRIN","INSECTICIDA",2.36,0.05,"EPA"]
[null,"BETA CYPERMETHRIN","INSECTICIDA",0.6,2.5000000000000001E-2,"EPA"]
[null,"BIFENAZATE","ACARICIDA",100,0.25,"EPA"]
[null,"BIFENTHRIN","INSECTICIDA ",1.5,0.18,"EFSA"]
[null,"BOSCALID","FUNGICIDA",21.8,0.15,"EPA"]
[null,"BROMUCONAZOLE","FUNGICIDA",13.8,0.05,"EFSA"]
[null,"BUPIRIMATE","FUNGICIDA",50,0.12,"EFSA"]
[null,"BUPROFEZIN","INSECTICIDA",13,1,"EPA"]
[null,"CADUSAFOS","NEMATICIDA",6.7000000000000004E-2,1,"EFSA"]
[null,"CALCIUM POLYSULPHIDE","FUNGICIDA",150,1,"EFSA"]
[null,"CAPTAN","FUNGICIDA",0.1,0.1,"EPA"]
[null,"CARBARYL","INSECTICIDA",1,0.1,"EFSA"]
[null,"CARBENDAZIM","FUNGICIDA",10,0.1,"EFSA"]
[null,"CARBOFURAN","INSECTICIDA",0.03,0.05,"EFSA"]
[null,"CARBOXIN","FUNGICIDA",30,1,"EPA"]
[null,"CARFENTRAZONE ETHYL","HERBICIDA ",58,0.72,"EFSA"]
[null,"CHLORANTRANILIPROLE","INSECTICIDA ",1000,1.7000000000000001E-2,"EFSA"]
[null,"CHLORFENAPYR","INSECTICIDA",5,1.2E-2,"EPA"]
[null,"CHLOROTHALONIL","FUNGICIDA",60,0.12,"EPA"]
[null,"CHLORPROPHAM","REGULADOR DE CRECIMIENTO",10,1,"EFSA"]
[null,"CHLORPYRIFOS","INSECTICIDA",0.1,1,"EFSA"]
[null,"CHROMAFENOZIDE","INSECTICIDA",193,0.63,"EFSA"]
[null,"CLOFENTEZINE","ACARICIDA",2.65,0.05,"EFSA"]
[null,"CLOTHIANIDIN","INSECTICIDA",10,2.2499999999999999E-2,"EFSA"]
[null,"COPPER HYDROXIDE","FUNGICIDA",16,1.1999999999999999E-3,"EFSA"]
[null,"COPPER METALLIC","FUNGICIDA",16,1.1999999999999999E-3,"EFSA"]
[null,"COPPER OXYCHLORIDE","FUNGICIDA",1000,1,"EPA"]
[null,"COPPER SULFATE PENTAHYDRATE","FUNGICIDA",1000,1,"EPA"]
[null,"CYANTRANILIPROLE","INSECTICIDA",5.7,0.03,"EPA"]
[null,"CYAZOFAMID","FUNGICIDA",94.8,0.37,"EPA"]
[null,"CYFLUTHRIN","INSECTICIDA",2.36,0.05,"EPA"]
[null,"CYMOXANIL","FUNGICIDA",4,7.4999999999999997E-2,"EPA"]
[null,"CYPERMETHRIN","INSECTICIDA",0.6,2.5000000000000001E-2,"EPA"]
[null,"CYPROCONAZOLE","FUNGICIDA",6,2.8000000000000001E-2,"EFSA"]
[null,"CYPRODINIL","FUNGICIDA",19.3,1.23E-2,"EPA"]
[null,"CYROMAZINE","INSECTICIDA",23,3.8E-3,"EPA"]
[null,"DAMINOZIDE","REGULADOR FISIOLOGICO",80.5,0.13,"EFSA"]
[null,"DELTAMETHRIN","INSECTICIDA",1000,2E-3,"EPA"]
[null,"DIAZINON","INSECTICIDA",0.06,0.4,"EFSA"]
[null,"DICLORAN","FUNGICIDA",2.8,0.09,"EFSA"]
[null,"DIETHOFENCARB","FUNGICIDA",78.2,0.06,"EFSA"]
[null,"DIFENOCONAZOLE","FUNGICIDA",25,0.37,"EFSA"]
[null,"DIFLUBENZURON","INSECTICIDA",8,5.0000000000000001E-3,"EPA"]
[null,"DIMETHIPIN","DEFOLIANTE",2.1800000000000002,1,"EPA"]
[null,"DIMETHOATE","INSECTICIDA",0.2,0.02,"EFSA"]
[null,"DIMETHOMORPH","FUNGICIDA",15,0.2,"EFSA"]
[null,"DINOTEFURAN","INSECTICIDA",1000,0.3,"EPA/EFSA"]
[null,"DIQUAT","HERBICIDA",1,3.0000000000000001E-3,"EFSA"]
[null,"DIURON","HERBICIDA",10,0.01,"EPA"]
[null,"DODEMORPH ACETATE","FUNGICIDA",8.1999999999999993,0.2,"EFSA"]
[null,"DODINE ","FUNGICIDA ",2,1,"EPA"]
[null,"EMAMECTIN","INSECTICIDA ",5,0.1,"EPA"]
[null,"EPOXICONAZOLE","FUNGICIDA",1.6,0.5,"EFSA"]
[null,"ESFENVALERATE","INSECTICIDA",2.5,0.25,"EPA/EFSA"]
[null,"ETHABOXAM","FUNGICIDA",30,1,"EPA"]
[null,"ETHEPHON","REGULADOR FISIOLOGICO",22,1.4999999999999999E-2,"EFSA"]
[null,"ETOFENPROX","INSECTICIDA",20,0.35,"EPA"]
[null,"ETOXAZOLE","INSECTICIDA",61.8,1,"EPA"]
[null,"ETRIDIAZOLE","FUNGICIDA",15,1,"EPA"]
[null,"FAMOXADONE","FUNGICIDA",1.4,0.05,"EPA"]
[null,"FENAMIDONE","FUNGICIDA",10.4,0.1,"EPA"]
[null,"FENAMIPHOS","NEMATICIDA",8.3000000000000004E-2,0.05,"EFSA"]
[null,"FENARIMOL","FUNGICIDA",0.6,2.5999999999999999E-2,"EPA/EFSA"]
[null,"FENAZAQUIN ","ACARICIDA",10,0.14000000000000001,"EFSA"]
[null,"FENBUCONAZOLE","FUNGICIDA",1000,1,"EPA"]
[null,"FENHEXAMID","FUNGICIDA",1000,0.2,"EPA"]
[null,"FENITROTHION","INSECTICIDA",1.32,0.20899999999999999,"EFSA"]
[null,"FENPROPIDIN","FUNGICIDA",5,7.1999999999999995E-2,"EFSA"]
[null,"FENPROPIMORPH","FUNGICIDA",0.7,0.1,"EFSA"]
[null,"FENPYROXIMATE","ACARICIDA",1.5,5.0000000000000001E-4,"EPA"]
[null,"FENTIN HIDROXIDE","FUNGICIDA",3,0.01,"EPA"]
[null,"FENVALERATE","INSECTICIDA",2.5,0.25,"EPA"]
[null,"FIPRONIL","INSECTICIDA",5,0.01,"EPA"]
[null,"FLONICAMID","INSECTICIDA",12.11,0.13,"EPA/EFSA"]
[null,"FLUAZINAM","FUNGICIDA",1,1.4999999999999999E-2,"EFSA"]
[null,"FLUBENDIAMIDE","INSECTICIDA ",2.58,0.02,"EFSA"]
[null,"FLUDIOXONIL","FUNGICIDA",58.5,8.9999999999999993E-3,"EFSA"]
[null,"FLUFENOXURON","INSECTICIDA",4,0.02,"EFSA"]
[null,"FLUMETRALIN","REGULADOR FISIOLOGICO",13.5,0.09,"EPA/EFSA"]
[null,"FLUOPICOLIDE","FUNGICIDA",7.4,2.75E-2,"EFSA"]
[null,"FLUOXASTROBIN","FUNGICIDA",3,0.04,"EFSA"]
[null,"FLUSILAZOLE","FUNGICIDA",4,0.3,"EPA"]
[null,"FLUTOLANIL","FUNGICIDA",80,1,"EPA"]
[null,"FLUTRIAFOL","FUNGICIDA",400,0.21,"EPA"]
[null,"FLUXAPYROXAD","FUNGICIDA",6,0.16,"EFSA"]
[null,"FOLPET","FUNGICIDA",10,2.7E-2,"EPA"]
[null,"FOMESAFEN","HERBICIDA",0.5,0.2,"EPA"]
[null,"FORMETANATE","INSECTICIDA",0.4,0.04,"EFSA"]
[null,"FOSETYL ALUMINUM","FUNGICIDA",1050,0.01,"EFSA"]
[null,"FURALAXYL","FUNGICIDA",5.8,0.1,"EFSA"]
[null,"FURALAXYL M","FUNGICIDA",5.8,0.1,"EFSA"]
[null,"GAMMA CIHALOTHRIN","INSECTICIDA ",0.5,0.12,"EFSA"]
[null,"GIBBERELLIC ACID","REGULADOR FISIOLOGICO",680,1,"EFSA"]
[null,"GIBBERELLIN GA4-GA7","REGULADOR FISIOLOGICO",500,0.18,"EFSA"]
[null,"GLUFOSINATE AMMONIUM","HERBICIDA",6.3,0.09,"EPA"]
[null,"GLYPHOSATE","HERBICIDA",2000,0.01,"EPA"]
[null,"HEXACONAZOLE","FUNGICIDA",2.5,1,"EPA"]
[null,"HEXAFLUMURON","INSECTICIDA",0.5,0.125,"EFSA"]
[null,"HEXYTHIAZOX","ACARICIDA",2.5,0.02,"EPA"]
[null,"IMAZALIL","FUNGICIDA",5,0.46,"EFSA"]
[null,"IMIDACLOPRID","INSECTICIDA",10,7.0000000000000007E-2,"EPA"]
[null,"INDOXACARB","INSECTICIDA",3.1,1,"EPA"]
[null,"IODINE POLYVINYLPYRROLIDONE","FUNGICIDA",1000,1,"EPA/EFSA"]
[null,"IPCONAZOLE","FUNGICIDA",10,0.03,"EPA"]
[null,"ISOPROTHIOLANE","FUNGICIDA",3.5,1,"EFSA"]
[null,"ISOPYRAZAM ","FUNGICIDA",30,0.45800000000000002,"EPA"]
[null,"KASUGAMYCIN","FUNGICIDA",11,1,"EPA"]
[null,"KRESOXIM METHYL","FUNGICIDA",146,0.13,"EFSA"]
[null,"LAMBDA CYHALOTHRIN","INSECTICIDA",0.5,3.0999999999999999E-3,"EFSA"]
[null,"LUFENURON","INSECTICIDA",9.6999999999999993,9.2999999999999999E-2,"EFSA"]
[null,"MAGNESIUM PHOSPHIDE","INSECTICIDA",1.1000000000000001,1,"EFSA"]
[null,"MALATHION","INSECTICIDA",34,0.15,"EFSA"]
[null,"MANCOZEB","FUNGICIDA",4.83,0.01,"EPA"]
[null,"MANDIPROPAMID","FUNGICIDA",25,0.06,"EFSA"]
[null,"MCPA","HERBICIDA",10.9,2.1999999999999999E-2,"EFSA"]
[null,"MEPANIPYRIM","FUNGICIDA",7.3,1,"EPA"]
[null,"METAFLUMIZONE","INSECTICIDA",100,7.0000000000000001E-3,"EPA/EFSA"]
[null,"METALAXYL M","FUNGICIDA",8,0.22900000000000001,"EFSA"]
[null,"METCONAZOLE","FUNGICIDA",4,0.65,"EFSA"]
[null,"METHAMIDOPHOS","INSECTICIDA",0.745,0.1,"EPA"]
[null,"METHIOCARB","INSECTICIDA",1.3,0.02,"EFSA"]
[null,"METHOMYL","INSECTICIDA",90,1,"EPA"]
[null,"METHOXYFENOZIDE","INSECTICIDA",1000,0.02,"EPA"]
[null,"METHYL PARATHION","INSECTICIDA",0.125,1,"EPA/EFSA"]
[null,"METIRAM","FUNGICIDA",6.7,1,"EPA"]
[null,"METRAFENONE","FUNGICIDA ",79,0.19,"EPA"]
[null,"MILBEMECTIN","INSECTICIDA",3,0.1,"EFSA"]
[null,"MSMA","HERBICIDA",3.2,1,"EPA/EFSA"]
[null,"MYCLOBUTANIL","FUNGICIDA",100,0.5,"EPA"]
[null,"NOVALURON","INSECTICIDA ",8.3000000000000007,0.1,"EPA"]
[null,"OMETHOATE","INSECTICIDA",0.1,1.5E-3,"EFSA"]
[null,"OXADIXYL","FUNGICIDA",12.5,1,"EFSA"]
[null,"OXAMYL","INSECTICIDA",50,4.0000000000000002E-4,"EPA/EFSA"]
[null,"OXYCARBOXIN","FUNGICIDA",400,1,"EPA"]
[null,"OXYDEMETON-METHYL","INSECTICIDA",0.3,0.2,"EPA/EFSA"]
[null,"OXYTETRACYCLINE","BACTERICIDA",0.05,1,"EPA"]
[null,"PACLOBUTRAZOL","REGULADOR FISIOLOGICO",20,3.6999999999999998E-2,"EFSA"]
[null,"PARAQUAT","HERBICIDA",0.56000000000000005,3.0000000000000001E-3,"EPA"]
[null,"PENCONAZOLE","FUNGICIDA",50,4.2999999999999997E-2,"EFSA"]
[null,"PENTHIOPYRAD","FUNGICIDA",75,0.4,"EPA"]
[null,"PERMETHRIN","INSECTICIDA",1000,5.7000000000000002E-2,"EPA"]
[null,"PHOSALONE","INSECTICIDA",0.9,7.0000000000000001E-3,"EFSA"]
[null,"PHOSPHOROUS ACID","FUNGICIDA",300,1,"EFSA"]
[null,"PICOXYSTROBIN","FUNGICIDA",32.200000000000003,1,"EPA"]
[null,"PIPERONYL BUTOXIDE","SINERGISTA",1000,1,"EPA/EFSA"]
[null,"PIRIMICARB","INSECTICIDA",38.799999999999997,0.13,"EFSA"]
[null,"PIRIMIPHOS METHYL","INSECTICIDA",15,0.09,"EFSA"]
[null,"PROCHLORAZ","FUNGICIDA",2.5,3.9E-2,"EFSA"]
[null,"PROCYMIDONE","FUNGICIDA",3.5,1,"EPA"]
[null,"PROPAMOCARB","FUNGICIDA ",150,0.6,"EPA"]
[null,"PROPARGITE","ACARICIDA",6,0.14000000000000001,"EPA"]
[null,"PROPICONAZOLE","FUNGICIDA",30,1.7600000000000001E-2,"EPA"]
[null,"PROPINEB","FUNGICIDA",250,1.37E-2,"EFSA"]
[null,"PYRACLOSTROBIN","FUNGICIDA",5,0.14000000000000001,"EPA"]
[null,"PYRIDABEN","ACARICIDA",4.9400000000000004,1,"EPA"]
[null,"PYRIDALYL","INSECTICIDA",2.8,3.6999999999999998E-2,"EPA"]
[null,"PYRIMETHANIL","FUNGICIDA",23,0.51,"EPA"]
[null,"PYRIPROXYFEN","INSECTICIDA",35.1,0.3,"EPA"]
[null,"QUINCLORAC","HERBICIDA",37.5,1,"EPA"]
[null,"SPINETORAM","INSECTICIDA",1000,1,"EPA"]
[null,"SPINOSAD","INSECTICIDA",1000,1,"EPA"]
[null,"SPIROMESIFEN","INSECTICIDA",1000,0.03,"EFSA"]
[null,"SPIROTETRAMAT ","INSECTICIDA ",5,2.1499999999999998E-2,"EPA"]
[null,"SPIROXAMINE","FUNGICIDA",2.5,0.4,"EFSA"]
[null,"SULFOXAFLOR","INSECTICIDA",75,2.4E-2,"EPA"]
[null,"SULFUR","FUNGICIDA",400,1,"EFSA"]
[null,"TAU-FLUVALINATE","INSECTICIDA",1,3.09E-2,"EFSA"]
[null,"TCMTB","FUNGICIDA",16.2,1,"EPA"]
[null,"TEBUCONAZOLE","FUNGICIDA",3,0.13,"EFSA"]
[null,"TEBUFENOZIDE","INSECTICIDA",2,1,"EPA"]
[null,"TEFLUBENZURON","INSECTICIDA",8,0.2,"EFSA"]
[null,"TERBUFOS","INSECTICIDA",0.15,1,"EPA"]
[null,"TETRACONAZOLE","FUNGICIDA",5.9,0.12,"EPA"]
[null,"THIABENDAZOLE","FUNGICIDA",50,3.3999999999999998E-3,"EPA"]
[null,"THIACLOPRID","INSECTICIDA",1.2,0.05,"EPA"]
[null,"THIAMETHOXAM","INSECTICIDA",8.23,1.0999999999999999E-2,"EPA"]
[null,"THIDIAZURON","REGULADOR FISIOLOGICO",1000,1.18E-2,"EPA"]
[null,"THIODICARB","INSECTICIDA",7,0.03,"EFSA"]
[null,"THIOPHANATE METHYL","FUNGICIDA",100,7.0000000000000007E-2,"EPA"]
[null,"THIRAM ","FUNGICIDA",300,0.01,"EPA"]
[null,"TOLFENPYRAD","INSECTICIDA",10,1,"EPA"]
[null,"TRIADIMEFON","FUNGICIDA",300,0.17,"EPA/EFSA"]
[null,"TRICHLORFON","INSECTICIDA",100,0.1,"EPA"]
[null,"TRIFLOXYSTROBIN","FUNGICIDA ",250,0.33,"EPA"]
[null,"TRIFLUMIZOLE","FUNGICIDA",1.5,3.5000000000000003E-2,"EPA"]
[null,"TRIFLUMURON","INSECTICIDA",3.6,0.05,"EFSA"]
[null,"TRIFORINE","FUNGICIDA",23,1,"EPA"]
[null,"TRINEXAPAC ETHYL","REGULADOR FISIOLOGICO",31.6,0.1,"EPA/EFSA"]
[null,"VALIFENALATE","FUNGICIDA",7,0.04,"EFSA"]
[null,"ZETA CYPERMETHRIN","INSECTICIDA",7.5,0.1,"EPA"]
[null,"ZIRAM","FUNGICIDA",7.5,0.01,"EPA"]
[null,"ZOXAMIDE","FUNGICIDA",1.66,8.7999999999999995E-2,"EPA"]

{"sheet":"ACT - Cultivo Coef. Transfer","index":10,"n_rows":93,"n_cols":6,"rows_kept":93,"cut":false,"hidden":false,"merged":[]}
[null,"CULTIVO","COEFICIENTE DE TRANSFERENCIA","DFR Genérico,  µg/cm2","COMENTARIOS","REPRESENTANTE GRUPO DE CULTIVOS DE LA EPA"]
[null,"Acedera",1100,2.5,null,"Vegetable, leafy except brassica Crop Group 4"]
[null,"Aguacate",1400,2.5,null,"Tree Fruit Evergreen"]
[null,"Ahuyama",550,2.5,null,"Vegetable, cucurbit,squash/cucumber Crop Group 9B"]
[null,"Ají",1100,2.5,null,"Vegetable, Fruiting Crop Groups 8 - 10"]
[null,"Alcachofa",1100,2.5,null,"Vegetable, stem/stalk, Crop Group 99-No Name"]
[null,"Algodón",1100,2.5,null,"Oilseed Crop Group 20"]
[null,"Almendra",580,2.5,null,"Tree \"nut\" Group"]
[null,"Anón",1400,2.5,null,"Tree Fruit Evergreen"]
[null,"Apio",1100,2.5,null,"Vegetable, leafy brassica Crop Group 5"]
[null,"Arándano",1400,2.5,null,"Bushberry Crop Group 13-07B"]
[null,"Arracacha",1100,2.5,null,"Vegetable, root/tuber Crop Group 1"]
[null,"Arroz",1100,2.5,null,"Grain, cereal Crop Group 15"]
[null,"Arveja",1100,2.5,null,"Vegetable, legume, edible pod Crop Group 6A"]
[null,"Avellana",580,2.5,null,"Tree \"nut\" Group"]
[null,"Avena",210,2.5,null,"Grain, cereal Crop Group 17"]
[null,"Badea",1400,2.5,null,"Vine/trellis Crop Group 13-07"]
[null,"Banano",1100,0.6,null,"SSSSSS"]
[null,"Berenjena",1100,2.5,null,"Vegetable, Fruiting Crop Groups 8 - 10"]
[null,"Brócoli",4200,2.5,null,"Vegetable, brassica head and stem Crop Group 5A"]
[null,"Café",1400,2.5]
[null,"Calabacín",550,2.5,null,"Vegetable, cucurbit,squash/cucumber Crop Group 9B"]
[null,"Caña de azúcar",1100,2.5,null,"No Group Name"]
[null,"Cebada",210,2.5,null,"Grain, cereal Crop Group 18"]
[null,"Cebolla",1400,2.5,null,"Vegetable, Bulb Crop Group 3-07"]
[null,"Cebolla china",1400,2.5,null,"Leafy Green  Crop Group 4A"]
[null,"Cebolla puerro",1400,2.5,null,"Vegetable, Bulb Crop Group 3-07"]
[null,"Cebollín",1400,2.5,null,"Vegetable, Bulb Crop Group 3-07"]
[null,"Chirimoya",1400,2.5,null,"Tree Fruit Evergreen"]
[null,"Chulupa",1400,2.5,null,"Vine/trellis Crop Group 13-07"]
[null,"Ciruela",1400,2.5,null,"Fruit, Stone Crop Group 12-12"]
[null,"Col de Bruselas",4200,2.5,null,"Vegetable, brassica head and stem Crop Group 5A"]
[null,"Coliflor",4200,2.5,null,"Vegetable, brassica head and stem Crop Group 5A"]
[null,"Curuba",1400,2.5,null,"Vine/trellis Crop Group 13-07"]
[null,"Durazno",1400,2.5,null,"Fruit, Stone Crop Group 12-12"]
[null,"Espárrago",1100,2.5,null,"Vegetable, stem/stalk, Crop Group 99-No Name"]
[null,"Espinaca",1100,2.5,null,"Vegetable, leafy except brassica Crop Group 4"]
[null,"Feijoa",1400,2.5,null,"Tree Fruit Evergreen"]
[null,"Frambuesa",1400,2.5,null,"Caneberry Crop Group 13-07A"]
[null,"Fresa",1100,2.5,null,"Berry, low growing Crop Group 13-07G"]
[null,"Frijol ",1100,2.5,null,"Pea and bean, dried shelled, except soybean Crop Group 6c"]
[null,"Granadilla",1400,2.5,null,"Vine/trellis Crop Group 13-07"]
[null,"Guanábana",1400,2.5,null,"Tree Fruit Evergreen"]
[null,"Guayaba",1400,2.5,null,"Tree Fruit Evergreen"]
[null,"Gulupa",1400,2.5,null,"Vine/trellis Crop Group 13-07"]
[null,"Haba",1100,2.5,null,"Vegetable, legume, edible pod Crop Group 6A"]
[null,"Habichuela",1100,2.5,null,"Vegetable, legume, edible pod Crop Group 6A"]
[null,"Higo",1400,2.5,null,"Tree Fruit Decidious "]
[null,"Lechuga",1100,2.5,null,"Vegetable, leafy except brassica Crop Group 4"]
[null,"Lima",1400,2.5,null,"Fruit, Citrus Crop Group 10-10B"]
[null,"Limón",1400,2.5,null,"Fruit, Citrus Crop Group 10-10B"]
[null,"Lulo",1100,2.5,null,"Vegetable, Fruiting Crop Groups 8 - 10"]
[null,"Macadamia",580,2.5,null,"Tree \"nut\" Group"]
[null,"Maíz",1100,2.5,null,"Grain, cereal Crop Group 15"]
[null,"Mandarina",1400,2.5,null,"Fruit, Citrus Crop Group 10-10A"]
[null,"Mango",1400,2.5,null,"Tree Fruit Evergreen"]
[null,"Maní",580,2.5,null,"Tree \"nut\" Group"]
[null,"Manzana",1400,2.5,null,"Fruit, pome Crop Group 11-10"]
[null,"Maracuyá",1400,2.5,null,"Vine/trellis Crop Group 13-07"]
[null,"Melón",550,2.5,null,"Vegetable, cucurbit, melon Crop Group 9A"]
[null,"Mora",1400,2.5,null,"Caneberry Crop Group 13-07A"]
[null,"Naranja",1400,2.5,null,"Fruit, Citrus Crop Group 10-10A"]
[null,"Ñame",1100,2.5,null,"Vegetable, root/tuber Crop Group 1"]
[null,"Ornamentales",4800,2.5]
[null,"Palma aceitera",1400,2.5,null,"Tree Fruit, Evergreen, Date Crop"]
[null,"Papa",210,2.5,null,"Vegetable, root/tuber Crop Group 1"]
[null,"Papaya",1400,2.5,null,"Tree Fruit Evergreen"]
[null,"Pepino",550,2.5,null,"Vegetable, cucurbit,squash/cucumber Crop Group 9B"]
[null,"Pera",1400,2.5,null,"Fruit, pome Crop Group 11-10"]
[null,"Perejil",1100,2.5,null,"Vegetable, leafy except brassica Crop Group 4"]
[null,"Pimiento",1100,2.5,null,"Vegetable, Fruiting Crop Groups 8 - 10"]
[null,"Pimiento dulce",1100,2.5,null,"Vegetable, Fruiting Crop Groups 8 - 10"]
[null,"Piña",1100,2.5,null,"Vegetable, stem/stalk, Crop Group 99-No Name"]
[null,"Pitahaya",1100,2.5,null,"Shrub cactus with fruit at end of stalks"]
[null,"Plátano",1100,0.6]
[null,"Rábano",1100,2.5,null,"Vegetable, root/tuber Crop Group 1"]
[null,"Remolacha",1100,2.5,null,"Vegetable, root/tuber Crop Group 1"]
[null,"Repollo/Col",4200,2.5,null,"Vegetable, brassica head and stem Crop Group 5A"]
[null,"Sábila ",1100,2.5,null,"Vegetable, stem/stalk, Crop Group 99-No Name"]
[null,"Sandía",550,2.5,null,"Vegetable, cucurbit,squash/cucumber Crop Group 9B"]
[null,"Sapote/Zapote",1400,2.5,null,"Fruit, Stone Crop Group 12-12"]
[null,"Sorgo",210,2.5,null,"Grain, cereal Crop Group 15"]
[null,"Soya",1100,2.5,null,"Vegetable, legume Crop Group 6"]
[null,"Tabaco",800,2.5,null,"Bunch and Bundle, No Crop Group"]
[null,"Tangelo",1400,2.5,null,"Fruit, Citrus Crop Group 10-10A"]
[null,"Tatsoi",4200,2.5,null,"Vegetable, brassica head and stem Crop Group 5A"]
[null,"Tomate",1100,2.5,null,"Vegetable, Fruiting Crop Groups 8 - 10"]
[null,"Tomate de árbol",1100,2.5,null,"Vegetable, Fruiting Crop Groups 8 - 10"]
[null,"Toronja/Pomelo",1400,2.5,null,"Fruit, Citrus Crop Group 10-10C"]
[null,"Trigo",210,2.5,null,"Grain, cereal Crop Group 16"]
[null,"Uchuva ",1100,2.5,null,"Vegetable, Fruiting Crop Groups 8 - 10"]
[null,"Uva",10100,2.5,null,"Fruit, small vine climbing except fuzzy kiwi Crop Group 13-07F"]
[null,"Zanahoria",1100,2.5,null,"Vegetable, root/tuber Crop Group 1"]